Cogmind - Beta 14 @@@ ROGUE MODE // 2025.01.12 @ 23:25:27 Player: nado Result: Destroyed by 8R-AWN with 8R-AWN's Boregun Performance ------------- Evolutions (1) 500 Regions Visited (4) 800 Robots Destroyed (58) 290 Value Destroyed (1585) 1585 Prototype IDs (5) 100 Alien Tech Used (0) 0 Bonus (85) 85 TOTAL SCORE: 3360 Bonus ------- Follower Combat Kills 85 Cogmind --------- Core Integrity 0/400 Matter 235/300 Energy 85/100 System Corruption 1% Temperature Warning (388) Movement Core (750) Ox14 Location -9/Exiles Parts ------- > --- POWER (1) -------- (None) > --- PROPULSION (3) --- (None) > --- UTILITY (2) ------ High-capacity Storage Unit > --- WEAPON (3) ------- Improved Medium Laser > --- INVENTORY (20) --- Light Nuclear Core Improved Treads Improved Treads Improved Heat Sink Improved Heat Sink Large Storage Unit Medium Matter Pod (100) Compact Matter Pod (150) Particle Charger Medium Armor Plating Medium Armor Plating Hardened Light Armor Plating Tractor Beam Grenade Launcher Peak State ------------ > --- POWER ------------ Improved Ion Engine > --- PROPULSION ------- Improved Treads Improved Treads Improved Treads > --- UTILITY ---------- Improved Heat Sink High-capacity Storage Unit > --- WEAPON ----------- Improved Medium Laser Improved Medium Laser Heavy Assault Rifle > --- INVENTORY -------- Light Nuclear Core Light Nuclear Core Improved Treads Improved Treads Improved Heat Sink Improved Heat Sink Large Storage Unit Medium Matter Pod Compact Matter Pod Medium Armor Plating Medium Armor Plating Hardened Light Armor Plating Tractor Beam Improved Medium Laser Improved Medium Laser Improved Medium Laser Heavy Assault Rifle Heavy Assault Rifle Grenade Launcher [Rating: 24] Favorites ----------- Power Improved Ion Engine Engine Improved Ion Engine Power Core Light Nuclear Core Propulsion Improved Treads Treads Improved Treads Leg Aluminum Leg Utility Large Storage Unit Device Improved Heat Sink Storage Large Storage Unit Protection Light Armor Plating Weapon Heavy Assault Rifle Energy Gun Improved Medium Laser Ballistic Gun Heavy Assault Rifle Build | -11 -10 -9 -9 -9 ------- Run | Yrd Mat Mat Min Exi Slots Evolved 2 | . . 2 . . Power . | . . . . . Propulsion 1 | . . 1 . . Utility . | . . . . . Weapon 1 | . . 1 . . Parts Attached 28 | 3 8 11 . 6 Power 3 | . 1 1 . 1 Engine 2 | . 1 1 . . Core 1 | . . . . 1 Reactor . | . . . . . Propulsion 7 | 2 2 3 . . Treads 7 | 2 2 3 . . Leg . | . . . . . Wheel . | . . . . . Hover . | . . . . . Flight . | . . . . . Utility 7 | 1 3 3 . . Device 4 | 1 1 2 . . Storage 2 | . 1 1 . . Processor . | . . . . . Hackware . | . . . . . Protection 1 | . 1 . . . Artifact . | . . . . . Weapon 11 | . 2 4 . 5 Energy Gun 6 | . . 3 . 3 Energy Cannon . | . . . . . Ballistic Gun 5 | . 2 1 . 2 Ballistic Cannon . | . . . . . Launcher . | . . . . . Special Weapon . | . . . . . Impact Weapon . | . . . . . Slashing Weapon . | . . . . . Piercing Weapon . | . . . . . Special Melee Weapon . | . . . . . Unidentified Prototypes 1 | . . 1 . . Parts Lost 20 | . 5 2 . 13 Power 3 | . 1 . . 2 Propulsion 5 | . 2 . . 3 Utility 3 | . 1 1 . 1 Weapon 9 | . 1 1 . 7 Highest Loss Streak 13 | . 3 1 . 13 To Critical Strikes 5 | . . . . 5 Average Slot Usage (%) 97 | . 95 99 100 81 Engine 10 | . 10 11 11 7 Treads 30 | . 27 32 33 23 Device 10 | . 12 9 11 7 Storage 11 | . 14 11 11 11 Protection 1 | . 1 1 . . Energy Gun 14 | . 5 16 22 20 Ballistic Gun 17 | . 22 16 11 9 Peak Build Rating 24 | 7 13 24 24 24 Average Rating 17 | 6 10 19 24 19 On Entrance 14 | 6 7 12 24 24 Naked Turns . | . . . . . Heaviest Build 57 | 13 31 57 57 57 Greatest Support 69 | 40 46 69 69 69 Greatest Overweight (x) 8 | . 8 1 . . Average Overweight (x) . | . . . . . Largest Inventory Capacity 20 | 8 15 20 20 20 Average Capacity 16 | 8 14 16 20 20 Most Carried 20 | 6 15 20 20 20 Average Carried 15 | 6 13 14 20 18 Final Capacity 20 | 8 15 20 20 20 Final Carried 20 | 6 13 20 20 14 Class Distribution -------------------- 60% | Gunner 31% | Mutant 7% | Tank Dominant Class ---------------- Mutant | -10/Materials Gunner | -9/Materials Gunner | -9/Mines Gunner | -9/Exiles Resources | -11 -10 -9 -9 -9 ----------- Run | Yrd Mat Mat Min Exi Matter Collected 1291 | 236 393 506 156 . Remotely . | . . . . . Salvage Created 2481 | 76 793 1476 60 76 Parts 128 | 4 43 78 3 . Haulers Intercepted 5 | . . 5 . . Recyclers Shooed 2 | . . 2 . . Parts Field Recycled . | . . . . . Retrieved Matter . | . . . . . Parts Self-Destructed . | . . . . . Prevented . | . . . . . Kills | -11 -10 -9 -9 -9 ------- Run | Yrd Mat Mat Min Exi Combat Hostiles Destroyed 49 | . 18 24 1 6 Guns 49 | . 18 24 1 6 Classes Destroyed 9 | 2 2 4 . 1 Worker 3 | . . 2 1 . Builder 1 | . 1 . . . Tunneler 2 | 1 1 . . . Hauler 5 | . . 5 . . Recycler 4 | 1 . 3 . . Swarmer 4 | . . 4 . . Grunt 31 | . 18 12 1 . Sentry 8 | . . 8 . . Assembled 6 | . . . . 6 Best Kill Streak 7 | 2 3 7 1 4 Combat Bots Only 5 | . 3 5 1 4 Max Kills in Single Turn 2 | 1 1 2 1 2 Gunslinging 1 | . . . . 1 Exploded . | . . . . . Melee . | . . . . . Uniques/NPCs Destroyed . | . . . . . Combat | -11 -10 -9 -9 -9 -------- Run | Yrd Mat Mat Min Exi Hostile Shots Fired 330 | . 96 89 2 143 Missed 82 | . 23 24 1 34 Damage Taken 3293 | . 847 741 17 1688 Core 593 | . 181 44 . 368 Absorbed by Shields . | . . . . . Regen/Repaired (Parts) 194 | . . 194 . . Core Remaining (%) 63 | 100 27 . . . Volleys Fired 167 | 2 75 63 3 24 Largest 3 | 2 2 3 3 3 Hottest 168 | 70 70 135 135 168 Shots Fired 405 | 4 141 189 9 62 Gun 405 | 4 141 189 9 62 Cannon . | . . . . . Launcher . | . . . . . Special . | . . . . . Kinetic 244 | 2 121 99 3 19 Thermal 161 | 2 20 90 6 43 Explosive . | . . . . . Electromagnetic . | . . . . . Robot Hit Streak 15 | 3 11 15 4 5 Robot Miss Streak 15 | . 2 4 2 15 Penetration Max . | . . . . . Secondary Targets 7 | . 1 2 . 4 Max Gunslinging Chain 1 | . 1 1 . 1 Shots Hit Robots 264 | 3 104 118 6 33 Core Hits 107 | 3 39 47 3 15 Critical Kills 1 | . . 1 . . Critical Parts Destroyed . | . . . . . Critical Strikes 17 | . 4 9 . 4 Burn 16 | . 4 8 . 4 Destroy 1 | . . 1 . . Melee Attacks . | . . . . . Impact . | . . . . . Slashing . | . . . . . Piercing . | . . . . . Sneak Attacks . | . . . . . Combat Hostiles . | . . . . . Follow-up Attacks . | . . . . . Damage Inflicted 4099 | 48 1417 2009 147 478 Guns 3959 | 40 1414 1924 103 478 Cannons . | . . . . . Explosions . | . . . . . Melee . | . . . . . Ramming 140 | 8 3 85 44 . Kinetic 2259 | 15 1214 829 50 151 Thermal 1700 | 25 200 1095 53 327 Explosive . | . . . . . Electromagnetic . | . . . . . Impact . | . . . . . Slashing . | . . . . . Piercing . | . . . . . Highest Corruption 1 | . . 1 1 1 Average Corruption 1 | . . 1 1 1 Corruption Purged . | . . . . . Corruption Blocked . | . . . . . Effects 11 | . . 2 7 2 Message Errors 3 | . . 1 1 1 Heat Flow Errors 4 | . . . 4 . Data Loss (minor) 1 | . . . 1 . Data Loss (major) 2 | . . 1 1 . Misfires 1 | . . . . 1 Overload Shots . | . . . . . Overflow Damage . | . . . . . Projectiles . | . . . . . Explosions . | . . . . . Melee . | . . . . . Knockbacks . | . . . . . Impact . | . . . . . Kinetic . | . . . . . Secondary . | . . . . . Self-Inflicted Damage . | . . . . . Shots . | . . . . . Rammed 24 | 1 1 18 4 . Targets Rammed 25 | 1 1 19 4 . Kicked . | . . . . . Crushed 1 | . . 1 . . Highest Temperature 570 | 18 123 380 168 570 Average Temperature 113 | 10 47 74 59 320 Received Heat Transfer 849 | . 546 234 9 60 Effects 9 | . . 1 . 8 Shutdowns 2 | . . . . 2 Energy Bleed 2 | . . 1 . 1 Short Circuit 1 | . . . . 1 Damage (minor) 3 | . . . . 3 Damage (core) 1 | . . . . 1 Siege Activations . | . . . . . Robots Corrupted . | . . . . . Combat Hostiles . | . . . . . Parts Fried . | . . . . . Impact Corruptions . | . . . . . Robots Melted . | . . . . . Combat Hostiles . | . . . . . Parts Melted 9 | . . 9 . . Heat Transferred 5188 | 74 888 3071 111 1044 Parts Sabotaged . | . . . . . Parts Stolen . | . . . . . Parts Stripped . | . . . . . Power Chain Reactions . | . . . . . Alert | -11 -10 -9 -9 -9 ------- Run | Yrd Mat Mat Min Exi Peak Influence 366 | 10 211 366 195 . Initial 134 | . 6 14 134 . Average 154 | 7 83 221 89 . Maximum Alert Level 1 | . 1 1 . . Low Security (%) 63 | 100 89 34 100 . Level 1 36 | . 10 65 . . Level 2 . | . . . . . Level 3 . | . . . . . Level 4 . | . . . . . Level 5 . | . . . . . High Security . | . . . . . Max Security . | . . . . . Squads Dispatched 13 | . 6 6 1 . Investigation 10 | . 5 4 1 . Extermination . | . . . . . Reinforcement 3 | . 1 2 . . Assault . | . . . . . Garrison . | . . . . . Intercept . | . . . . . Searches Triggered . | . . . . . Construction Impeded . | . . . . . Haulers Reinforced . | . . . . . Active Scanning Responses . | . . . . . Cargo Convoy Interrupts . | . . . . . Stealth | -11 -10 -9 -9 -9 --------- Run | Yrd Mat Mat Min Exi Distress Signals 8 | . 1 7 . . Communications Jammed . | . . . . . Distress Signals . | . . . . . Times Spotted 88 | . 27 48 5 8 Peak Tracking Total 9 | . 4 6 2 9 Tactical Retreats 5 | . 3 2 . . Traps | -11 -10 -9 -9 -9 ------- Run | Yrd Mat Mat Min Exi Traps Triggered 5 | . 4 1 . . Indirectly . | . . . . . Trap Hack Attempts . | . . . . . Triggered . | . . . . . Disarmed . | . . . . . Reprogrammed . | . . . . . Reused . | . . . . . Traps Extracted . | . . . . . Installed . | . . . . . Triggered . | . . . . . Machines | -11 -10 -9 -9 -9 ---------- Run | Yrd Mat Mat Min Exi Machines Disabled 5 | . . 1 . 4 Max in Single Turn 1 | . . 1 . 1 Machines Repaired . | . . . . . Machines Dismantled . | . . . . . Machines Sabotaged . | . . . . . Overloaded Fab Kills . | . . . . . Hacking | -11 -10 -9 -9 -9 --------- Run | Yrd Mat Mat Min Exi Machines Accessed 23 | . 8 13 2 . Terminals 17 | . 6 10 1 . Fabricators . | . . . . . Repair Stations 3 | . 1 2 . . Recycling Units 1 | . 1 . . . Scanalyzers 1 | . . 1 . . Garrison Access . | . . . . . Total Hacks 50 | . 20 28 2 . Successful 18 | . 7 10 1 . Failed 31 | . 13 17 1 . Catastrophic 9 | . 3 5 1 . Database Lockouts 1 | . . 1 . . Manual 30 | . 9 20 1 . Terminals 39 | . 16 22 1 . Fabricators . | . . . . . Repair Stations 5 | . 1 4 . . Recycling Units 3 | . 3 . . . Scanalyzers 2 | . . 2 . . Garrison Access . | . . . . . Terminal Hacks 10 | . 5 4 1 . Part Schematic 2 | . . 2 . . Robot Analysis 2 | . 2 . . . Prototype ID Bank 3 | . 2 1 . . Open Door 1 | . . . 1 . Unreport Threat 2 | . 1 1 . . Fabricator Hacks . | . . . . . Repair Station Hacks 4 | . . 4 . . Scan Component 2 | . . 2 . . Repair 2 | . . 2 . . Recycling Unit Hacks 1 | . 1 . . . Retrieve Components 1 | . 1 . . . Scanalyzer . | . . . . . Garrison Access Hacks . | . . . . . Unauthorized Hacks 3 | . 1 2 . . Terminals 2 | . 1 1 . . Botnet 2 | . 1 1 . . Fabricators . | . . . . . Repair Stations . | . . . . . Recycling Units . | . . . . . Scanalyzers 1 | . . 1 . . Extract 1 | . . 1 . . Garrison Access . | . . . . . Data Cores Recovered . | . . . . . Used . | . . . . . Hacking Detections 20 | . 7 12 1 . Full Trace Events 4 | . 2 2 . . Feedback Events 1 | . . 1 . . Corruption 1 | . . 1 . . Feedback Blocked . | . . . . . Robot Schematics Acquired . | . . . . . Robots Built . | . . . . . Authchips . | . . . . . Time . | . . . . . Total Robot Build Rating . | . . . . . Part Schematics Acquired 10 | . . 10 . . Parts Built . | . . . . . Authchips . | . . . . . Time . | . . . . . Total Part Build Rating . | . . . . . Parts Repaired 2 | . . 2 . . Time 64 | . . 64 . . Parts Recycled . | . . . . . Recycled Matter . | . . . . . Retrieved Matter . | . . . . . Retrieved Components 9 | . 9 . . . Parts Scanalyzed . | . . . . . Part Schematics Acquired . | . . . . . Parts Damaged . | . . . . . Bothacking | -11 -10 -9 -9 -9 ------------ Run | Yrd Mat Mat Min Exi Used RIF Installer . | . . . . . Robots Hacked . | . . . . . Non-combat . | . . . . . Combat . | . . . . . Robot Hacks Applied . | . . . . . Relay Couplers Released . | . . . . . Fabnet Peak Effective % . | . . . . . Robots Rewired . | . . . . . Allies Hacked . | . . . . . Hacks Repelled . | . . . . . Allies | -11 -10 -9 -9 -9 -------- Run | Yrd Mat Mat Min Exi Total Allies 2 | . . . 2 . Largest Group 2 | . . . 2 1 Highest-Rated Group 42 | . . . 42 31 Highest-Rated Ally 31 | . . . 31 31 Total Orders . | . . . . . Ally Attacks 7 | . . . 7 . Total Damage 109 | . . . 109 . Kills 3 | . . . 3 . Allies Corrupted . | . . . . . Allies Melted . | . . . . . Intel | -11 -10 -9 -9 -9 ------- Run | Yrd Mat Mat Min Exi Robot Analysis Total 2 | . 2 . . . Derelict Logs Recovered 1 | . . . 1 . Drone Launches . | . . . . . Drone Recoveries . | . . . . . Exploration | -11 -10 -9 -9 -9 ------------- Run | Yrd Mat Mat Min Exi Turns Passed 4767 | 54 1376 2356 807 174 Spaces Moved 2414 | 27 650 1197 484 56 Core 1 | . 1 . . . Treads 2413 | 27 649 1197 484 56 Legs . | . . . . . Wheels . | . . . . . Hover . | . . . . . Flight . | . . . . . Fastest Speed 160 | 160 160 160 160 160 Average Speed 160 | 160 160 160 160 160 Slowest Speed 450 | 160 450 240 160 160 Overloaded Moves . | . . . . . Propulsion Burnouts . | . . . . . Robots Hopped . | . . . . . Cave-ins Triggered . | . . . . . Exploration Rate (%) 62 | 4 95 95 95 24 Regions Visited 4 Branch Regions 2 Pre-discovered Areas . | . . . . . Known Exits Taken . | . . . . . Unknown Exits Taken 4 | 1 1 1 1 . Scrap Searched 2 | . . . 2 . Spaces Dug . | . . . . . Terrain Destroyed . | . . . . . Melee . | . . . . . Projectile . | . . . . . AOE . | . . . . . Terrain Rammed . | . . . . . Walls Destroyed . | . . . . . Machines Disabled . | . . . . . Actions | -11 -10 -9 -9 -9 --------- Run | Yrd Mat Mat Min Exi Total 2965 | 32 842 1489 509 93 Wait 275 | . 92 159 17 7 Move 2411 | 27 649 1196 483 56 Hop . | . . . . . Pick Up 36 | . 12 23 1 . Fast Attach 9 | 1 3 5 . . Attach 14 | . 4 4 . 6 Detach 2 | . 1 1 . . Swap 5 | 2 1 2 . . Drop 22 | . 4 17 1 . Fire 167 | 2 75 63 3 24 Melee . | . . . . . Ram . | . . . . . Kick . | . . . . . Crush 24 | . 1 19 4 . Escape Stasis . | . . . . . Rewire . | . . . . . Trap . | . . . . . Miscellaneous . | . . . . . Route ------- -11/Scrapyard -10/Materials (discovered 3 exits: *Mat x2 / [*Min]) -9/Materials (discovered 5 exits: [*Mat x3] / *Min x2) -9/Mines (discovered 3 exits: [*Mat x2] / [*Exi]) -9/Exiles (discovered 1 exit: [*Min]) History --------- Turn | Location | Event 4 | -11/Scrapyard | Discovered new exit (range 2) 55 | -11/Scrapyard | Entered Materials 274 | -10/Materials | Discovered new exit (range 8) 314 | -10/Materials | Build established: Mutant 725 | -10/Materials | Discovered new exit (range 7) 955 | -10/Materials | Discovered new exit (range 7) 1213 | -10/Materials | Core integrity fell below 50% 1231 | -10/Materials | Lost 3 parts (2n1w) 1431 | -10/Materials | Entered another Materials area 1431 | -9/Materials | Evolved 2 slots: Propulsion x1, Weapon x1 1739 | -9/Materials | Build established: Tank 1889 | -9/Materials | Discovered new exit (range 15) 2098 | -9/Materials | Build established: Gunner 2455 | -9/Materials | Discovered new exit (range 10) 2894 | -9/Materials | Discovered new exit (range 10) 3195 | -9/Materials | Repaired Imp. Treads 3217 | -9/Materials | Discovered new exit (range 15) 3352 | -9/Materials | Repaired Imp. Treads 3456 | -9/Materials | Central database locked down 3762 | -9/Materials | Discovered new exit (range 9) 3787 | -9/Materials | Entered Mines 3795 | -9/Mines | Met a Derelict shopkeep closing up shop 3824 | -9/Mines | Discovered new exit (range 9) 3956 | -9/Mines | Assembled infested the area 3966 | -9/Mines | A weapon hastily lodged in a ceiling crevice suddenly fell to the ground 3974 | -9/Mines | Learned Materials stockpile data 4211 | -9/Mines | Discovered new exit (range 12) 4364 | -9/Mines | Deemed a non-threat by the Exiles lab entrance 4365 | -9/Mines | Discovered new exit (range 5) 4594 | -9/Mines | Entered Exiles 4594 | -9/Exiles | Accompanied by 1 ally 4620 | -9/Exiles | Discovered new exit (range 14) 4624 | -9/Exiles | Led the pair of lost Derelicts to a safe place 4641 | -9/Exiles | Met 8R-AWN 4665 | -9/Exiles | Met EX-HEX 4683 | -9/Exiles | Attacked by the Exiles 4729 | -9/Exiles | Core integrity fell below 50% 4748 | -9/Exiles | Core integrity fell below 20% 4768 | -9/Exiles | Destroyed by 8R-AWN with 8R-AWN's Boregun Last Messages --------------- 04744_ Overheating: Energy bleed (-8). 04746_ Penetrated by HV Slug. 04746_ HV Slug penetrates Machine. 04746_ as-06524 suffers critical hit (Burn). 04748_ Penetrated by HV Slug. 04749_ as-46970 destroyed. 04750_ Penetrated by HV Slug. 04750_ Critical hit (Destroy). 04750_ Hvy. Assault Rifle destroyed. 04753_ as-06524 destroyed. 04753_ Switching to secondary target: 8R-AWN. 04754_ Penetrated by HV Slug. 04754_ Critical hit (Destroy). 04754_ Flak Gun destroyed. 04754_ Penetrated by HV Slug. 04757_ Overheating: Hcp. Storage Unit damaged (-59). 04760_ Penetrated by HV Slug. 04766_ Imp. Medium Laser broken. 04766_ Overheating: Short circuit. 04768_ Penetrated by HV Slug. Map ----- +----------------------------------------------------+ | ?????????????????????????????????????????????????? | | ?????????????????????????????????????????????????? | | ?????????????????????????????????????????????????? | | ?????????????????????????????????????????????????? | | ?????????????????????????????????????????????????? | | ?????????????????????????????????????????????????? | | ?????????????????????????????????????????????????? | | ?????????????????????????????????????????????????? | | ?????????????????????????????????????????????????? | | ?????????????????????????????????????????????????? | | ?????????????????????????????????????????????????? | | ?????????????????????????????????????????????????? | | ?????????????????????????????????????????????????? | | ?????????????????????????????????????????????????? | | ?????????????? ?????##########???????????????????? | | ?????????????? #####"""""""""##?????????????????? | | ????????????? " """ """##????????????????? | | ????????????? " " #????????????????? | | ???????????? " """#????????????????? | | ???????????? "a"#???????????#####? | | ???????????? " "##?????????##" #? | | ??????????? ""###???????#" #? | | ???????????" """#??????##" ## | | ????????????"" "#????### # | | ??????????????#"" ##???# | | ???????????????#""" @ ##?## | | ???????????????#" %% ;## | | ???????????????#" g ## | | ??????????????#"""" % % #### | | ??????????????? ""#?#""" | | ?????????????? % #"""##?#### | | ????????????? % % ######?????? | | ???????????? ##??????????? | | ????????????? " ##???????????? | | ????????????? "" " "#????????????? | | ??????????????? " " " ""#" "##????????????? | | ??????????????#?##""" """## " ##?????????????? | | ????????????????????"""???#########??????????????? | | ?????????????????????????????????????????????????? | | ?????????????????????????????????????????????????? | | ?????????????????????????????????????????????????? | | ?????????????????????????????????????????????????? | | ?????????????????????????????????????????????????? | | ?????????????????????????????????????????????????? | | ?????????????????????????????????????????????????? | | ?????????????????????????????????????????????????? | | ?????????????????????????????????????????????????? | | ?????????????????????????????????????????????????? | | ?????????????????????????????????????????????????? | | ?????????????????????????????????????????????????? | +----------------------------------------------------+ Best States ------------- Heat Dissipation 42 Energy Generation 14 Energy Capacity 265 Matter Stores 300 Matter Capacity 300 Sight Range 16 Terrain Scan Range 16 Terrain Scan Density 10 Armor Coverage 150 Evasion (%) 40 Recoil Reduction 3 Item Schematics ----------------- Huge Storage Unit | -9/Materials | Hacked Hvy. Assault Rifle | -9/Materials | Extracted Maul | -9/Materials | Extracted Med. Storage Unit | -9/Materials | Extracted Signal Interpreter | -9/Materials | Extracted Beam Cannon | -9/Materials | Extracted Aluminum Leg | -9/Materials | Extracted Mace | -9/Materials | Extracted Assault Rifle | -9/Materials | Extracted Tractor Beam | -9/Materials | Hacked Robot Schematics ------------------ None Fabricated ------------ Nothing Alien Tech Used ----------------- None Achievements -------------- None Challenges ------------ None Game ------ Seed LegMachineLegs Manual? 0 Play Time 00:49:34 Cumulative 74.1 hours Start 2025.01.12 @ 21:50:12 End 2025.01.12 @ 23:25:27 Sessions 1 Manual Loads 0 Difficulty Rogue Special Mode None Game No. 49 Rogue 49 Adventurer 0 Explorer 0 Win Type - Total 1 Types 1/0/0/0/0/0/0/0/0 Lore% 27 Gallery% 36 Achievement% 33 Wizard Run 0 Options --------- Layout 0 ASCII 0 Keyboard 1 Movement Vi Keybinds 0 Fullscreen 2 Font 18/Terminus Map View 76x50 Zoom Use 0% Tactical HUD 1 Map Filters NONE Filters NONE Steam 1 RUN: 463240b4-94af-41f3-aaa5-d8d8d8f6f997